bitfinex/quotes_ETHUSD_20240730
["timestamp","ask_amount","ask_price","bid_price","bid_amount"]
[1722374356553,1.27720234,3274.7,3274.3,8.012494]
[1722374356758,1.27720234,3274.8,3274.5,3.0539]
[1722374356965,1.27720234,3274.9,3274.5,3.0539]
[1722374357164,1.27720234,3275.0,3274.6,0.30539]
[1722374357337,1.27720234,3274.9,3274.7,2.4797]
[1722374357738,1.27720234,3275.1,3274.8,3.05362]
[1722374357943,1.27720234,3275.1,3274.9,0.553332]
[1722374358236,1.27720234,3275.1,3274.7,2.4797]
[1722374358469,1.59685909,3274.9,3274.3,10.492194]
[1722374358766,1.27809347,3274.7,3274.3,10.492194]
[1722374358966,1.27809347,3274.6,3274.3,3.692194]
[1722374359274,1.91704471,3275.1,3273.9,2.3771]
[1722374359275,1.59753725,3274.4,3273.9,2.3771]
[1722374359574,1.27852458,3274.2,3273.9,2.3771]
[1722374359771,1.27852458,3274.3,3273.9,5.43153]
[1722374360225,1.27852458,3274.2,3273.9,2.3771]
[1722374360567,1.27852458,3274.2,3273.9,2.920265]
[1722374360862,1.27852458,3274.2,3273.9,5.974715]
[1722374361061,1.27852458,3274.1,3273.9,5.974715]
[1722374361266,1.27852458,3274.2,3273.9,5.974715]
[1722374362047,1.27852458,3274.2,3274.0,0.9029205]
[1722374362845,1.27852458,3274.3,3274.0,3.9572405]
[1722374363152,1.27852458,3274.2,3274.0,0.9029205]
[1722374363352,1.59901988,3274.2,3273.9,2.920265]
[1722374363588,1.27957176,3274.1,3273.9,2.920265]
[1722374363885,1.27957176,3274.0,3273.9,2.920265]
[1722374364184,1.59901988,3274.2,3273.9,2.920265]
[1722374364185,1.27957176,3274.1,3273.9,2.920265]
[1722374364683,1.59901988,3274.1,3273.9,2.920265]
[1722374364842,1.27928454,3274.0,3273.9,2.920265]
[1722374365045,1.59901988,3274.1,3273.9,2.3771]
[1722374365351,6.22830587,3275.3,3273.3,2.2908]
[1722374365352,1.59918692,3274.0,3273.3,2.2908]
[1722374365549,1.27963126,3273.7,3273.3,2.2908]
[1722374365863,1.27963126,3273.6,3273.3,3.505384]
[1722374366059,1.27963126,3273.6,3273.3,6.560394]
[1722374366408,1.27963126,3273.5,3273.4,3.05491]
[1722374366742,1.27963126,3273.7,3273.4,4.0164434]
[1722374366938,1.27963126,3273.7,3273.6,3.05474]
[1722374368504,1.27963126,3273.8,3273.6,5.42054]
[1722374368786,1.27963126,3273.8,3273.7,3.60280318]
[1722374369184,1.27963126,3273.9,3273.7,3.60280318]
[1722374369564,1.27963126,3274.0,3273.7,0.60925055]
[1722374369968,1.27963126,3274.0,3273.8,3.05455]
[1722374370813,1.27963126,3274.0,3273.9,3.05446]
[1722374371372,1.27963126,3274.0,3273.9,8.56192]
[1722374371609,1.27963126,3274.2,3274.1,3.05427]
[1722374371818,1.59974869,3274.3,3274.2,6.10836]
[1722374372017,1.59981791,3274.5,3274.3,3.05401]
[1722374372322,1.59982189,3274.5,3274.4,3.05399]
[1722374372471,1.59983348,3274.5,3274.4,3.05399]
[1722374372672,1.59983348,3274.5,3274.3,3.05408]
[1722374372914,1.91980018,3274.9,3274.3,3.05408]
[1722374372915,1.2799808,3274.4,3274.3,3.05408]
[1722374373311,1.2799808,3274.4,3273.9,2.453]
[1722374373312,1.59983348,3274.5,3274.1,3.0542]
[1722374373472,1.27995281,3274.3,3274.1,3.0542]
[1722374373672,1.27995281,3274.3,3274.1,3.910359]
[1722374373986,1.59983348,3274.3,3273.8,0.90232032]
[1722374374186,1.2798639,3274.1,3273.8,0.90232032]
[1722374374402,1.2798639,3274.0,3273.8,0.90232032]
[1722374375923,1.2798639,3274.0,3273.6,2.4382]
[1722374376129,1.27981441,3273.8,3273.6,2.4382]
[1722374376425,1.27981441,3273.8,3273.6,5.49289]
[1722374376585,1.27981441,3273.8,3273.7,3.05464]
[1722374376786,1.27981441,3273.9,3273.8,3.05455]
[1722374376998,1.59983348,3274.1,3273.9,3.05446]
[1722374376999,1.27981441,3274.0,3273.9,3.05446]
[1722374377198,1.27993637,3274.1,3274.0,3.05436]
[1722374377439,1.59983348,3274.2,3274.1,3.05427]
[1722374377616,1.59983348,3274.3,3274.1,3.05427]
[1722374377822,1.28019171,3274.2,3274.0,3.05436]
[1722374378136,1.28017677,3274.1,3274.0,3.05436]
[1722374378300,1.28017677,3274.1,3274.0,6.8111882]
[1722374378501,1.28017677,3274.2,3274.1,6.10854]
[1722374379119,1.28036993,3274.3,3274.2,3.05418]
[1722374379449,1.28036993,3274.3,3274.0,2.4865]
[1722374379739,3.0,3274.9,3274.0,5.54085]
[1722374379740,1.28034395,3274.1,3274.0,5.54085]
[1722374380233,1.60043053,3274.1,3274.0,5.54085]
[1722374380432,1.60043053,3274.2,3274.0,5.54085]
[1722374380823,1.28050248,3274.1,3274.0,5.54085]
[1722374381059,1.28052838,3274.1,3274.0,5.54085]
[1722374381819,1.60082579,3274.2,3274.0,5.54081]
[1722374382025,1.2806743,3274.1,3274.0,5.54081]
[1722374382474,1.60082579,3274.2,3274.0,5.54081]
[1722374382837,1.60082579,3274.1,3274.0,5.54081]
[1722374383036,1.60082579,3274.2,3274.1,3.05427]
[1722374383620,1.92099095,3274.4,3274.0,5.54082]
[1722374383824,1.60076888,3274.2,3274.0,5.54082]
[1722374384495,1.60076888,3274.2,3274.0,2.4865]
[1722374384819,1.60076888,3274.2,3274.1,3.05427]
[1722374385026,1.60048377,3274.3,3274.0,6.114947]
[1722374385224,1.60048377,3274.2,3274.0,5.54086]
[1722374385474,1.60062737,3274.2,3274.0,5.54086]
[1722374385624,1.60062737,3274.1,3274.0,5.54086]
[1722374386270,1.92075285,3274.4,3274.0,5.54086]
[1722374386271,1.60062737,3274.2,3274.0,5.54086]
[1722374386651,1.60062737,3274.2,3274.0,2.4865]
[1722374387054,1.92075285,3274.4,3273.8,0.2]
[1722374387263,1.60020556,3273.9,3273.8,0.2]
[1722374387769,1.92024667,3274.2,3273.8,0.2]
[1722374387976,1.60018565,3273.9,3273.8,0.2]
[1722374388160,1.92024667,3274.2,3273.8,0.2]
[1722374388409,1.91965467,3274.0,3273.8,0.2]
[1722374389319,1.91965467,3274.1,3273.8,0.2]
[1722374389947,4.9298241,3274.7,3273.8,0.2]
[1722374389948,1.91965467,3274.2,3273.9,5.41651]
[1722374390445,1.91965467,3274.2,3273.9,2.3621]
[1722374390792,1.60013445,3274.0,3273.9,2.3621]
[1722374391305,3.0,3274.5,3273.9,2.3621]
[1722374391306,1.91965467,3274.2,3273.9,2.3621]
[1722374391508,1.91965467,3274.2,3273.8,0.2]
[1722374391720,5.23959712,3274.5,3273.8,0.2]
[1722374391721,1.91965467,3274.1,3273.8,0.2]
[1722374392096,1.91965467,3274.0,3273.8,0.2]
[1722374392338,1.92039644,3273.9,3273.8,0.2]
[1722374392631,4.53569712,3274.1,3273.8,0.2]
[1722374393590,2.23959712,3273.9,3273.8,0.2]
[1722374393796,3.0,3274.0,3273.8,0.2]
[1722374394241,5.6455241,3274.0,3273.8,0.2]
[1722374394568,2.4848,3273.9,3273.8,0.2]
[1722374394768,5.12962045,3273.9,3273.8,0.2]
[1722374395075,3.0,3273.9,3273.8,0.2]
[1722374395431,2.4848,3273.9,3273.8,0.2]
[1722374397052,4.72265077,3273.9,3273.8,0.2]
[1722374397252,5.4848,3273.9,3273.8,0.2]
[1722374397528,2.4848,3273.9,3273.8,0.2]
[1722374397946,4.72241972,3273.9,3273.8,0.2]
[1722374398159,7.72236575,3273.9,3273.8,0.2]
[1722374398728,5.4848,3273.9,3273.8,0.2]
[1722374398938,2.4848,3273.9,3273.8,0.2]
[1722374399343,4.72157003,3273.9,3273.8,0.2]
[1722374399547,7.72157003,3273.9,3273.8,0.2]
[1722374399973,7.72173689,3273.9,3273.8,0.2]
[1722374400178,5.4848,3273.9,3273.8,0.2]
[1722374400380,5.53926,3273.9,3273.8,0.2]
[1722374400682,8.12715858,3273.9,3273.8,0.2]
[1722374400841,5.4848,3273.9,3273.8,0.2]
[1722374401040,2.4848,3273.9,3273.8,0.2]
[1722374401289,5.12616621,3273.9,3273.8,0.2]
[1722374401650,8.12616621,3273.9,3273.8,0.2]
[1722374402444,6.0348,3273.9,3273.8,0.2]
[1722374402676,11.72965601,3273.9,3273.8,0.2]
[1722374403188,9.08926,3273.9,3273.8,0.2]
[1722374405702,12.14372,3273.9,3273.8,0.2]
[1722374405987,9.08926,3273.9,3273.8,0.2]
[1722374406888,11.72774229,3273.9,3273.8,0.2]
[1722374407384,14.78220229,3273.9,3273.8,0.2]
[1722374407679,14.78165371,3273.9,3273.8,0.2]
[1722374408585,12.14372,3273.9,3273.8,0.2]
[1722374409142,12.51411168,3273.9,3273.8,0.2]
[1722374409346,15.15034847,3273.9,3273.8,0.2]
[1722374409688,12.51411168,3273.9,3273.8,0.2]
[1722374411086,12.51411168,3273.9,3272.3,2.4376]
[1722374411087,3.05475,3273.6,3272.3,2.4376]
[1722374411269,1.27455807,3272.7,3272.4,0.549362]
[1722374412598,1.27455807,3272.7,3272.3,2.4376]
[1722374413062,1.59319759,3272.8,3272.3,2.4376]
[1722374413063,1.27455807,3272.8,3272.3,2.4376]
[1722374413789,1.27370158,3272.7,3272.3,2.4376]
[1722374413988,1.27370158,3272.7,3272.3,5.48661288]
[1722374414486,1.27370158,3272.8,3272.3,5.48661288]
[1722374414797,1.27332455,3272.8,3272.3,5.48661288]
[1722374415147,1.27332455,3272.7,3272.3,5.48661288]
[1722374415485,1.27332455,3272.8,3272.3,5.48661288]
[1722374416187,1.27332455,3272.7,3272.3,8.54252288]
[1722374416390,1.27332455,3272.8,3272.4,3.04901288]
[1722374417168,1.27332455,3272.8,3272.4,4.12701288]
[1722374417367,1.27332455,3272.9,3272.4,4.12701288]
[1722374418986,1.27332455,3272.8,3272.4,4.12701288]
[1722374422909,1.27332455,3272.8,3272.5,0.96136258]
[1722374423204,1.27332455,3272.9,3272.5,0.96136258]
[1722374423408,1.27332455,3272.8,3272.5,0.96136258]
[1722374423609,1.27332455,3272.7,3272.6,0.2]
[1722374423808,4.91108135,3273.2,3272.6,0.2]
[1722374423809,1.27332455,3272.8,3272.6,0.2]
[1722374427828,1.27332455,3272.8,3272.6,0.4]
[1722374427979,1.27332455,3272.7,3272.6,0.4]
[1722374429586,1.27560958,3272.7,3272.6,0.4]
[1722374431019,1.5945406,3272.8,3272.6,0.4]
[1722374432396,1.65032911,3272.7,3272.6,0.4]
[1722374432719,0.05578851,3272.7,3272.6,0.4]
[1722374432911,1.91344872,3272.9,3272.6,0.4]
[1722374433113,0.05407352,3272.7,3272.6,0.4]
[1722374433308,1.91512492,3273.0,3272.6,0.4]
[1722374433531,0.05407352,3272.7,3272.6,0.4]
[1722374433715,1.91562874,3272.9,3272.6,0.4]
[1722374433921,0.05407352,3272.7,3272.6,0.4]
[1722374434244,1.91562874,3272.9,3272.6,0.4]
[1722374434754,0.05415062,3272.8,3272.6,0.4]
[1722374435330,1.91623788,3272.9,3272.6,0.4]
[1722374435550,0.05410642,3272.7,3272.6,0.4]
[1722374435710,1.91623788,3272.8,3272.6,0.4]
[1722374436038,0.05410642,3272.7,3272.6,0.4]
[1722374436805,1.91722272,3272.7,3272.6,0.4]
[1722374437025,0.05410642,3272.7,3272.6,0.4]
[1722374437846,1.97132914,3272.7,3272.6,0.4]
[1722374439457,0.05410642,3272.7,3272.6,0.4]
[1722374439778,3.0,3273.2,3272.6,0.4]
[1722374439921,0.05423803,3272.7,3272.6,0.4]
[1722374440249,2.23930157,3272.9,3272.6,0.4]
[1722374440449,0.05423803,3272.7,3272.6,0.4]
[1722374440650,2.23930157,3272.9,3272.6,0.4]
[1722374441132,0.05429319,3272.8,3272.6,0.4]
[1722374441474,0.05429319,3272.8,3272.7,1.078]
[1722374441773,0.05429319,3272.8,3272.7,3.4397]
[1722374441925,2.23930157,3273.0,3272.7,3.4397]
[1722374442127,0.05447691,3272.8,3272.7,3.4397]
[1722374442330,2.23930157,3273.0,3272.7,3.4397]
[1722374442556,0.05447691,3272.8,3272.7,3.4397]
[1722374442763,2.23930157,3273.0,3272.7,4.434809]
[1722374442916,0.05447691,3272.8,3272.7,4.434809]
[1722374443119,2.24049741,3273.0,3272.7,4.434809]
[1722374443316,2.24049741,3273.0,3272.7,6.412319]
[1722374443317,0.05432376,3272.8,3272.7,6.412319]
[1722374443553,1.92093506,3272.8,3272.7,6.49521]
[1722374443866,0.05441441,3272.8,3272.7,6.49521]
[1722374444531,1.97534947,3272.8,3272.7,6.49521]
[1722374446407,1.97625414,3272.8,3272.7,6.49521]
[1722374447578,0.05441441,3272.8,3272.7,6.49521]
[1722374448067,0.05441441,3272.8,3272.7,7.490296]
[1722374448273,2.24214636,3273.0,3272.7,7.490296]
[1722374448473,0.05451316,3272.9,3272.8,3.05543]
[1722374448707,2.24214636,3273.1,3272.9,3.05538]
[1722374448998,3.0,3273.6,3272.9,3.05538]
[1722374448999,2.24214636,3273.2,3273.0,4.546638]
[1722374449168,2.24214636,3273.2,3273.0,4.1333]
[1722374449354,2.24214636,3273.2,3273.1,3.0552]
[1722374449550,2.24214636,3273.3,3273.2,3.05511]
[1722374449813,2.24171497,3273.3,3273.2,4.13311]
[1722374450041,0.4521957,3273.7,3273.3,3.05502]
[1722374450215,2.24174033,3273.4,3273.3,3.05502]
[1722374450381,2.24174033,3273.5,3273.4,1.078]
[1722374450727,2.29474528,3273.5,3273.4,1.078]
[1722374450878,0.05300495,3273.5,3273.4,4.64841971]
[1722374451275,1.92121053,3273.5,3273.4,10.12443971]
[1722374451548,1.92121053,3273.6,3273.5,3.05483]
[1722374451676,1.92121053,3273.6,3273.5,4.13283]
[1722374452078,1.92121053,3273.7,3273.6,3.05474]
[1722374452311,1.92121053,3273.7,3273.6,4.13274]
[1722374453037,1.91995516,3273.7,3273.6,4.13274]
[1722374453482,1.91995516,3273.8,3273.6,4.13274]
[1722374453682,1.91995516,3273.8,3273.7,4.13264]
[1722374454009,1.91995516,3274.0,3273.9,3.05446]
[1722374454316,1.91995516,3274.1,3274.0,3.05436]
[1722374454496,1.91995516,3274.1,3274.0,4.13236]
[1722374454694,2.4817,3274.9,3274.0,4.13236]
[1722374454695,1.91995516,3274.2,3274.0,4.13236]
[1722374454917,1.91995516,3274.2,3274.1,5.42327]
[1722374455739,1.91995516,3274.3,3274.2,3.05418]
[1722374455917,1.91995516,3274.4,3274.3,1.078]
[1722374456124,2.23994769,3274.7,3274.3,1.078]
[1722374456125,2.4817,3275.1,3274.3,1.078]
[1722374456347,1.91777579,3274.5,3274.3,1.078]
[1722374457000,1.91777579,3274.6,3274.3,1.078]
[1722374457217,1.91777579,3274.6,3274.5,1.078]
[1722374457623,1.91777579,3274.7,3274.5,1.078]
[1722374457964,1.91777579,3274.8,3274.5,1.078]
[1722374458719,1.59583488,3274.6,3274.5,1.078]
[1722374459303,1.59560577,3274.6,3274.5,1.078]
[1722374459606,1.59560577,3274.6,3274.5,4.1319]
[1722374459927,1.59560577,3274.7,3274.5,4.1319]
[1722374460337,1.59560577,3274.7,3274.5,1.078]
[1722374460540,1.27607965,3274.6,3274.5,1.078]
[1722374461327,1.27607965,3274.7,3274.5,1.078]
[1722374461869,1.27607965,3274.7,3274.5,4.13189]
[1722374462572,1.27607965,3274.7,3274.6,5.3541]
[1722374462779,1.27607965,3274.8,3274.7,3.05371]
[1722374462933,1.27607965,3274.8,3274.7,4.13171]
[1722374463271,1.27607965,3274.9,3274.7,4.13171]
[1722374463694,1.27607965,3274.9,3274.7,1.078]
[1722374464265,1.27607965,3275.0,3274.7,1.078]
[1722374464677,1.27607965,3275.0,3274.9,4.13152]
[1722374464886,1.27376223,3275.4,3275.2,3.05323]
[1722374465101,1.27376223,3275.5,3275.2,4.13123]
[1722374465389,1.27376223,3275.7,3275.4,1.078]
[1722374465573,1.27376223,3275.8,3275.5,3.05291]
[1722374465781,0.05164837,3275.6,3275.5,3.0529]
[1722374465946,1.27376223,3275.9,3275.6,3.05284]
[1722374466282,1.27376223,3276.1,3275.6,3.05284]
[1722374466481,1.27376223,3276.1,3275.5,2.3003]
[1722374467289,1.27376223,3276.2,3275.5,2.3003]
[1722374467444,4.27376223,3276.2,3275.5,2.3003]
[1722374468163,3.0,3276.2,3275.5,2.3003]
[1722374469495,3.0,3276.3,3275.5,5.35326]
[1722374469682,2.35176223,3276.4,3275.5,5.35326]
[1722374469884,2.35176223,3276.4,3275.6,1.078]
[1722374470283,1.078,3276.4,3275.6,1.078]
[1722374471195,4.27376223,3276.5,3275.6,1.078]
[1722374471410,3.0,3276.5,3275.6,1.41583]
[1722374471615,3.5632,3276.6,3275.7,3.05278]
[1722374471913,3.5632,3276.6,3275.6,1.41583]
[1722374472932,3.0,3276.5,3275.6,1.41583]
[1722374473088,3.0,3276.5,3275.8,1.078]
[1722374473289,3.0,3276.6,3275.8,1.078]
[1722374473601,3.0,3276.6,3275.8,1.524855]
[1722374477306,3.375,3276.7,3275.9,2.2998]
[1722374477857,3.0,3276.6,3275.9,2.2998]
[1722374478033,0.375,3276.7,3275.9,2.2998]
[1722374480804,0.05259538,3276.6,3275.9,2.2998]
[1722374481005,0.05259538,3276.6,3276.0,0.3824655]
[1722374484754,0.05259538,3276.6,3276.0,1.4604655]
[1722374491541,4.078,3276.9,3276.0,1.4604655]
[1722374491746,0.05289342,3276.8,3276.0,1.4604655]
[1722374495776,1.32542125,3276.8,3276.0,1.4604655]
[1722374495938,1.32542125,3276.8,3276.1,0.68128555]
[1722374496572,1.27252783,3276.7,3276.1,0.68128555]
[1722374496940,0.05286118,3276.6,3276.1,0.68128555]
[1722374497479,0.05286118,3276.6,3276.2,2.4741]
[1722374497679,1.32538901,3276.6,3276.2,2.4741]
[1722374497967,4.32538901,3276.6,3276.2,3.09497084]
[1722374498322,3.0,3276.5,3276.2,3.09497084]
[1722374498517,0.05277092,3276.4,3276.2,3.09497084]
[1722374499765,1.32529875,3276.4,3276.2,3.09497084]
[1722374501342,1.27252783,3276.3,3276.2,3.09497084]
[1722374501567,1.32525464,3276.3,3276.2,3.09497084]
[1722374502342,0.05272681,3276.3,3276.2,3.09497084]
[1722374502547,1.64742477,3276.3,3276.2,3.09497084]
[1722374503550,0.05272681,3276.3,3276.2,3.09497084]
[1722374503750,3.0,3276.5,3276.2,3.09497084]
[1722374503997,0.05266562,3276.4,3276.2,3.09497084]
[1722374504878,1.91620933,3276.5,3276.2,3.09497084]
[1722374505093,0.05262151,3276.3,3276.2,2.4741]
[1722374505520,1.91620933,3276.5,3276.2,2.4741]
[1722374505854,1.96881748,3276.4,3276.2,2.4741]
[1722374506717,1.91620933,3276.3,3276.2,2.4741]
[1722374506921,1.96877338,3276.3,3276.2,2.4741]
[1722374507447,0.05256405,3276.3,3276.2,2.4741]
[1722374507753,3.0,3276.7,3276.2,2.4741]
[1722374507955,2.23782245,3276.5,3276.2,2.4741]
[1722374508316,2.23782245,3276.4,3276.2,2.4741]
[1722374508660,2.2904306,3276.4,3276.2,2.4741]
[1722374509295,2.23782245,3276.3,3276.2,2.4741]
[1722374509802,2.2903865,3276.3,3276.2,2.4741]
[1722374510302,0.05256405,3276.3,3276.2,2.4741]
[1722374511397,2.64923712,3276.4,3276.2,2.4741]
[1722374511543,0.05256405,3276.3,3276.2,2.4741]
[1722374514603,3.0,3276.6,3276.2,2.4741]
[1722374514604,2.6494577,3276.4,3276.2,2.4741]
[1722374514781,0.05256405,3276.3,3276.2,2.4741]
[1722374516240,2.70202175,3276.3,3276.2,2.4741]
[1722374516445,2.70202175,3276.3,3275.8,2.2904]
[1722374516748,2.6494577,3276.1,3275.7,6.8]
[1722374516952,2.24260561,3275.8,3275.4,2.2904]
[1722374517193,0.05230556,3275.7,3275.5,1.322148]
[1722374517394,2.24260561,3275.7,3275.5,1.322148]
[1722374517599,4.25310587,3276.4,3275.5,1.322148]
[1722374517759,2.24275215,3275.7,3275.5,1.322148]
[1722374517967,4.25310587,3276.4,3275.5,1.322148]
[1722374518151,2.24264643,3275.7,3275.5,1.322148]
[1722374519201,2.24264643,3275.7,3275.4,2.2904]
[1722374519396,2.70151068,3275.6,3275.1,2.2904]
[1722374519602,2.24173416,3275.2,3275.1,2.2904]
[1722374519901,2.24163844,3275.2,3275.1,2.2904]
[1722374520195,2.64912609,3275.4,3275.1,2.2904]
[1722374520447,2.24158222,3275.2,3275.1,2.2904]
[1722374520750,2.24158582,3275.2,3275.1,2.2904]
[1722374521711,2.24158582,3275.3,3275.1,2.2904]
[1722374522126,0.05194729,3275.2,3275.1,2.2904]
[1722374522344,2.24158582,3275.3,3275.1,2.2904]
[1722374522551,2.24158582,3275.4,3275.1,2.2904]
[1722374523051,0.05210091,3275.3,3275.1,2.2904]
[1722374524334,0.05210091,3275.3,3275.1,2.62724]
[1722374524536,1.91879539,3275.2,3275.1,2.62724]
[1722374526180,1.91879539,3275.3,3275.1,2.62724]
[1722374526341,1.078,3275.8,3275.1,2.2904]
[1722374526537,1.91835586,3275.2,3275.1,2.2904]
[1722374527343,1.97039814,3275.2,3275.1,2.2904]
[1722374527836,1.91835586,3275.2,3275.1,2.2904]
[1722374528039,1.91835586,3275.3,3275.1,2.2904]
[1722374528590,0.05204228,3275.2,3275.1,2.2904]
[1722374529079,1.91835586,3275.3,3275.1,2.2904]
[1722374529434,0.05204228,3275.2,3275.1,2.2904]
[1722374529637,0.05204228,3275.2,3275.1,2.62724]
[1722374530083,1.91764736,3275.3,3275.1,2.62724]
[1722374530454,0.05194316,3275.2,3275.1,2.62724]
[1722374530643,1.91764736,3275.3,3275.1,2.62724]
[1722374530985,0.05194316,3275.2,3275.1,2.62724]
[1722374531635,1.59797572,3275.2,3275.1,6.75858]
[1722374531955,1.59785992,3275.3,3275.2,3.05324]
[1722374532296,1.59785992,3275.3,3275.2,4.034422]
[1722374532895,5.23725525,3275.9,3275.2,4.034422]
[1722374532896,1.91764736,3275.7,3275.3,3.05312]
[1722374533219,1.59744543,3275.4,3275.3,3.05312]
[1722374533501,1.59754751,3275.4,3275.3,4.1324082]
[1722374533714,1.64932101,3275.4,3275.3,4.1324082]
[1722374533898,0.0517735,3275.4,3275.3,4.1324082]
[1722374534269,1.91705701,3275.7,3275.3,4.1324082]
[1722374534608,1.91705701,3275.6,3275.3,4.1324082]
[1722374534780,0.05197127,3275.6,3275.4,0.41934667]
[1722374534974,1.91705701,3275.7,3275.4,0.41934667]
[1722374535201,0.0519819,3275.5,3275.4,0.41934667]
[1722374535639,3.0,3276.3,3275.4,0.41934667]
[1722374535838,3.0,3276.3,3275.3,4.1324082]
[1722374536053,0.05220248,3276.0,3275.3,4.1324082]
[1722374536225,1.078,3276.1,3275.3,4.1324082]
[1722374536400,0.05220365,3275.9,3275.3,4.1324082]
[1722374536746,1.078,3276.1,3275.4,0.41324082]
[1722374537100,1.91719392,3275.7,3275.4,0.41324082]
[1722374537510,0.0520713,3275.6,3275.4,0.41324082]
[1722374538944,1.078,3276.1,3275.4,0.41324082]
[1722374539095,0.05202718,3275.5,3275.4,3.46630082]
[1722374539300,1.078,3276.1,3275.4,5.35176]
[1722374539610,0.05224776,3276.0,3275.4,5.35176]
[1722374539807,0.05224776,3276.0,3275.4,5.41281538]
[1722374540007,0.05224776,3276.0,3275.4,5.41281513]
[1722374540336,0.05224776,3276.0,3275.4,2.2987]
[1722374544453,0.05224776,3276.0,3275.3,1.0792882]
[1722374544600,0.05224776,3276.0,3275.2,5.35194]
[1722374547420,0.05224776,3276.0,3275.2,2.2987]
[1722374548231,1.91715628,3275.5,3275.2,2.2987]
[1722374548609,1.078,3276.1,3275.2,2.2987]
[1722374548807,0.05198722,3275.4,3275.2,2.2987]
[1722374549042,1.91718784,3275.5,3275.3,0.642998]
[1722374549349,0.05194309,3275.3,3274.9,3.3767]
[1722374549534,1.59756753,3275.0,3274.9,3.3767]
[1722374550225,1.59756753,3275.0,3274.9,6.43021]
[1722374551452,6.0690245,3275.9,3274.9,6.43021]
[1722374551453,1.59756753,3275.1,3274.9,6.43021]
[1722374551675,1.59756753,3275.1,3274.9,11.112055]
[1722374551830,3.4269,3275.9,3274.9,11.112055]
[1722374552016,1.6494245,3275.0,3274.9,10.034065]
[1722374552217,1.6494245,3275.0,3274.9,11.112065]
[1722374552554,1.27821947,3275.0,3274.9,11.112065]
[1722374552756,1.27821947,3275.0,3274.9,46.112065]
[1722374554757,1.27821947,3275.0,3274.9,11.112065]
[1722374555331,2.2377255,3275.7,3275.4,0.2]
[1722374555543,2.23820359,3275.7,3275.4,0.2]
[1722374555865,0.05207546,3275.6,3275.4,0.2]
[1722374558415,0.05207546,3275.6,3275.3,2.33745546]
[1722374558416,2.29038336,3275.6,3275.3,2.152979]
[1722374558616,2.29104945,3275.6,3275.3,5.206119]
[1722374559411,2.29104945,3275.6,3275.4,0.2]
[1722374560417,2.23897399,3275.5,3275.4,0.2]
[1722374560655,2.2908199,3275.5,3275.4,0.2]
[1722374561173,0.05184591,3275.5,3275.4,0.2]
[1722374562161,2.4075,3275.7,3275.4,0.2]
[1722374562162,5.05307193,3275.7,3275.4,0.2]
[1722374562469,2.64557193,3275.6,3275.4,0.2]
[1722374562671,0.0519776,3275.6,3275.4,0.2]
[1722374563431,2.69754953,3275.6,3275.4,0.2]
[1722374565170,2.69805403,3275.6,3275.4,0.2]
[1722374567503,4.078,3275.5,3275.4,0.2]
[1722374567830,4.12990031,3275.5,3275.4,0.2]
[1722374570850,1.12990031,3275.5,3275.4,0.2]
[1722374572291,3.53740031,3275.5,3275.4,0.2]
[1722374572448,9.59036031,3275.5,3275.4,0.2]
[1722374574657,12.64332031,3275.5,3275.4,0.2]
[1722374575954,13.19332031,3275.5,3275.4,0.2]
[1722374576369,16.24628031,3275.5,3275.4,0.2]
[1722374576751,13.19332031,3275.5,3275.4,0.2]
[1722374577248,16.24628031,3275.5,3275.4,0.2]
[1722374577749,16.24628031,3275.5,3274.9,0.4]
[1722374577750,6.10686,3275.0,3274.9,0.4]
[1722374578047,12.77344784,3275.0,3274.9,0.4]
[1722374578254,13.32344784,3275.0,3274.9,0.4]
[1722374578411,13.47597112,3275.0,3274.9,0.4]
[1722374578612,16.64166279,3275.0,3274.9,0.4]
[1722374579364,13.47597112,3275.0,3274.9,0.4]
[1722374579546,16.6405906,3275.0,3274.9,0.4]
[1722374579706,16.69376543,3275.0,3274.9,0.4]
[1722374580359,13.52914595,3275.0,3274.9,0.4]
[1722374581463,16.69258203,3275.0,3274.9,0.4]
[1722374583419,3.05455,3273.9,3272.8,2.4107]
[1722374583623,3.05364,3274.8,3272.8,2.4107]
[1722374583624,1.27457486,3273.1,3272.8,2.4107]
[1722374583956,1.59296376,3272.9,3272.8,2.4107]
[1722374584156,0.04505858,3273.0,3272.8,2.4107]
[1722374584490,0.04501439,3272.9,3272.8,2.4107]
[1722374585367,1.31753169,3272.9,3272.8,2.4107]
[1722374586141,0.04501439,3272.9,3272.8,2.4107]
[1722374587478,1.2725173,3273.1,3272.2,2.3262]
[1722374587626,1.2725173,3273.0,3272.2,5.37521288]
[1722374587947,4.31556244,3273.0,3272.2,5.37521288]
[1722374588145,3.04304514,3273.0,3272.2,5.37521288]
[1722374588353,0.04304514,3273.0,3272.2,5.37521288]
[1722374588549,0.04304514,3273.0,3272.3,0.64532129]
[1722374589584,1.12104514,3273.0,3272.3,0.64532129]
[1722374590451,1.078,3272.8,3272.2,2.3262]
[1722374590836,0.04129051,3272.7,3272.2,2.3262]
[1722374591264,1.078,3272.6,3271.8,2.2615]
[1722374591465,0.04120212,3272.5,3271.8,2.2615]
[1722374591669,0.04120212,3272.5,3271.9,0.54641555]
[1722374592059,1.078,3272.4,3271.9,0.54641555]
[1722374592256,1.078,3272.4,3271.7,0.1461755]
[1722374592560,0.04115921,3272.3,3271.7,0.1461755]
[1722374593383,1.078,3272.4,3271.7,0.1461755]
[1722374593785,0.04113549,3272.3,3271.7,0.1461755]
[1722374593989,0.04113549,3272.3,3271.8,0.32027255]
[1722374602880,0.04113549,3272.3,3271.7,0.1461755]
[1722374606290,0.04113549,3272.3,3272.2,0.2]
[1722374610335,0.04113549,3272.3,3272.2,0.4]
[1722374611548,3.04113549,3272.3,3272.2,0.4]
[1722374613017,6.09708549,3272.3,3272.2,0.4]
[1722374613344,11.50183549,3272.3,3272.2,0.4]
[1722374614104,12.05183549,3272.3,3272.2,0.4]
[1722374614647,16.3757789,3272.3,3272.2,0.6]
[1722374615021,15.10778549,3272.3,3272.2,0.6]
[1722374615226,16.37554754,3272.3,3272.2,0.6]